bitfinex/quotes_ETHUSD_20250110
["timestamp","ask_amount","ask_price","bid_price","bid_amount"]
[1736502054534,3.79581,3312.7,3311.7,3.01958]
[1736502054738,5.37,3312.8,3311.8,3.04965417]
[1736502054938,5.37,3312.8,3312.0,3.0193]
[1736502055116,5.24336458,3313.2,3312.2,0.55]
[1736502055311,3.0,3313.0,3312.3,0.218]
[1736502055555,3.01832,3313.1,3312.3,0.3269058]
[1736502057112,7.59505458,3313.7,3312.6,3.01876]
[1736502057113,8.38779,3313.7,3312.6,3.01876]
[1736502057314,8.38779,3313.7,3312.7,0.33205967]
[1736502057515,2.22505458,3313.5,3312.7,0.41068616]
[1736502057764,2.22505458,3313.5,3312.7,0.10881016]
[1736502058047,2.22505458,3313.5,3312.5,3.01886]
[1736502058245,2.22505458,3313.5,3312.6,0.10883407]
[1736502058451,3.0,3313.4,3312.4,3.57644]
[1736502058751,3.0,3313.4,3312.5,0.48830198]
[1736502060064,3.01817,3313.3,3312.5,0.48830198]
[1736502060211,3.01817,3313.3,3312.5,0.10885798]
[1736502060552,3.01817,3313.3,3312.3,0.218]
[1736502060739,3.01817,3313.3,3312.6,0.10818703]
[1736502060938,3.01817,3313.3,3312.3,0.218]
[1736502061559,3.01817,3313.3,3312.4,0.10823485]
[1736502062248,3.01817,3313.3,3312.5,0.33754615]
[1736502062448,3.01817,3313.3,3312.6,0.10818703]
[1736502063356,5.24301458,3313.5,3312.6,0.13837361]
[1736502063555,2.22505458,3313.5,3312.6,0.13837361]
[1736502063856,3.0,3313.6,3312.8,3.01859]
[1736502064017,3.0,3313.6,3312.9,0.40997431]
[1736502064672,3.0,3313.6,3312.9,0.10811531]
[1736502064863,3.0,3313.6,3312.6,3.01876]
[1736502065049,3.0,3313.6,3312.7,0.13766254]
[1736502065362,3.0,3313.6,3312.7,3.15632254]
[1736502065528,3.0,3313.6,3312.7,3.15632252]
[1736502065859,3.0,3313.6,3312.8,0.31563225]
[1736502066069,10.61247458,3314.1,3313.0,3.0184]
[1736502066362,6.01753,3314.0,3313.1,0.10738423]
[1736502066565,6.01753,3314.0,3313.2,0.218]
[1736502066927,6.01753,3314.0,3313.3,0.10733643]
[1736502067731,3.0,3314.0,3313.3,0.10733643]
[1736502068260,3.0,3314.0,3313.4,0.44143953]
[1736502068478,3.0,3314.0,3313.2,0.24817867]
[1736502068784,3.0,3314.0,3313.3,0.10710879]
[1736502070500,3.0,3314.0,3313.2,0.218]
[1736502070501,3.01777,3313.7,3313.2,0.218]
[1736502070667,2.22505458,3313.8,3313.3,0.10710879]
[1736502070851,2.22505458,3313.8,3313.2,0.218]
[1736502071053,5.24275458,3313.8,3313.3,0.10710879]
[1736502071247,5.24275458,3313.8,3313.2,0.218]
[1736502071464,5.24275458,3313.8,3313.3,0.10710879]
[1736502071666,5.24275458,3313.8,3313.2,0.218]
[1736502071877,5.24275458,3313.8,3313.3,0.10710879]
[1736502072073,5.24275458,3313.8,3313.2,0.218]
[1736502072388,0.8311,3313.7,3313.3,0.10710879]
[1736502072586,3.01804,3313.4,3313.3,0.10710879]
[1736502072790,3.01823,3313.2,3313.1,0.218]
[1736502073015,3.05615458,3313.2,3312.6,0.218]
[1736502073298,3.05615458,3313.2,3311.3,11.21505458]
[1736502073299,3.05615458,3312.7,3311.4,8.05963268]
[1736502073451,3.01878,3312.6,3311.5,1.81258008]
[1736502073789,3.01878,3312.6,3311.6,0.218]
[1736502073989,3.01888,3312.5,3311.6,0.218]
[1736502074293,3.01901,3312.4,3311.7,0.10756897]
[1736502074653,6.01878,3312.6,3311.7,0.10756897]
[1736502074890,6.01878,3312.6,3311.7,0.13776183]
[1736502076130,3.0,3312.7,3311.8,3.57699]
[1736502076285,3.0,3312.7,3311.9,0.3684559]
[1736502076490,3.0,3312.7,3312.0,0.1076421]
[1736502076977,3.01877,3312.6,3312.0,0.1076421]
[1736502077599,3.01877,3312.6,3311.7,0.5575]
[1736502077811,3.01877,3312.6,3312.1,0.10761819]
[1736502078014,3.01877,3312.6,3311.7,0.5575]
[1736502078230,3.01877,3312.6,3312.2,0.10759427]
[1736502078509,3.0,3312.7,3312.3,0.10757036]
[1736502078677,3.0,3312.7,3311.8,0.379517]
[1736502078878,3.0,3312.7,3311.9,0.10766602]
[1736502081181,5.24406458,3312.4,3311.9,0.10766602]
[1736502081374,2.22505458,3312.7,3311.9,0.10766602]
[1736502081573,3.0188,3312.6,3311.7,0.55]
[1736502081814,3.01862,3312.8,3312.0,0.1076421]
[1736502082010,3.01862,3312.8,3311.8,0.03019142]
[1736502082202,3.01868,3312.7,3312.1,0.10761819]
[1736502082516,3.01868,3312.7,3312.2,0.10759427]
[1736502082694,3.01868,3312.7,3311.9,0.35997814]
[1736502082894,3.01868,3312.7,3312.0,0.1076421]
[1736502083579,2.22505458,3313.0,3312.0,0.13783355]
[1736502083727,3.0186,3312.8,3312.0,0.13783355]
[1736502083931,3.0186,3312.8,3312.0,0.45356391]
[1736502084899,3.0186,3312.8,3312.0,0.42337246]
[1736502085933,5.37,3313.2,3312.0,0.42337246]
[1736502086133,3.01843,3313.0,3312.0,0.45356219]
[1736502086469,5.24348458,3313.0,3312.0,3.15712183]
[1736502086770,3.01852,3312.9,3312.0,0.13783183]
[1736502087539,5.37,3313.2,3312.2,0.0075]
[1736502087861,5.37,3313.2,3312.3,0.65760656]
[1736502088479,5.37,3313.2,3312.3,0.10760656]
[1736502088480,2.98305458,3313.0,3312.3,0.10760656]
[1736502088641,2.22505458,3312.7,3312.3,0.10760656]
[1736502088855,2.22505458,3312.7,3311.8,3.01946]
[1736502089034,2.22505458,3312.7,3312.0,0.55]
[1736502089375,2.22505458,3312.7,3312.1,0.10765439]
[1736502089765,5.24374458,3312.7,3312.1,0.10765439]
[1736502090454,5.24374458,3312.7,3312.2,0.218]
[1736502090854,5.24374458,3312.7,3312.3,0.10760656]
[1736502092242,3.0,3312.9,3312.3,0.10760656]
[1736502092456,3.01835,3313.1,3312.3,0.10760656]
[1736502093043,3.01835,3313.1,3312.3,0.44510611]
[1736502093239,5.37,3313.2,3312.3,0.44510611]
[1736502093443,5.24346458,3313.0,3312.3,0.10760656]
[1736502093663,3.0185,3312.9,3312.3,0.10760656]
[1736502095183,3.0186,3312.8,3312.3,0.10760656]
[1736502096157,3.0188,3312.6,3312.3,0.10760656]
[1736502096775,2.22505458,3312.7,3312.3,0.10760656]
[1736502097261,5.24374458,3312.7,3312.3,0.10760656]
[1736502101568,2.22505458,3312.7,3312.3,0.10760656]
[1736502101963,5.37,3313.1,3312.3,0.10760656]
[1736502102169,5.37,3313.1,3312.4,0.33446666]
[1736502102588,5.24320458,3313.3,3312.5,0.10775018]
[1736502103204,3.01823,3313.2,3312.4,0.33446666]
[1736502103586,3.01833,3313.1,3312.4,0.33446666]
[1736502103788,3.01833,3313.1,3312.2,0.248188]
[1736502104101,3.01833,3313.1,3312.2,0.218]
[1736502104603,3.01833,3313.1,3312.3,0.107798]
[1736502105809,3.01852,3312.9,3312.3,0.107798]
[1736502106108,5.24380458,3312.7,3312.4,0.218]
[1736502106403,5.24380458,3312.7,3312.3,0.218]
[1736502106794,3.01878,3312.6,3312.4,0.10777409]
[1736502107200,3.01878,3312.6,3312.3,0.218]
[1736502107814,3.01878,3312.6,3312.4,0.10777409]
[1736502108316,3.01878,3312.6,3312.3,0.218]
[1736502108611,3.01878,3312.6,3312.4,0.10777409]
[1736502108970,2.22505458,3312.7,3312.3,0.218]
[1736502109175,3.01895,3312.5,3312.4,0.10777409]
[1736502109414,3.01895,3312.5,3312.3,0.218]
[1736502109776,3.01895,3312.5,3312.4,0.10793452]
[1736502110084,3.01895,3312.5,3312.3,0.218]
[1736502110279,3.01895,3312.5,3312.4,0.10793452]
[1736502110679,3.01895,3312.5,3312.3,0.218]
[1736502111115,3.01895,3312.5,3312.4,0.10802251]
[1736502111491,3.01895,3312.5,3312.1,0.218]
[1736502111697,3.01899,3312.4,3312.1,0.218]
[1736502111902,3.01899,3312.4,3312.2,0.10807034]
[1736502112098,3.01899,3312.4,3312.1,0.218]
[1736502114089,0.7879,3312.6,3312.1,0.218]
[1736502114289,3.80671,3312.6,3312.1,0.218]
[1736502114494,3.01881,3312.6,3312.2,0.10807034]
[1736502114694,3.01881,3312.6,3312.1,0.218]
[1736502124023,5.37,3312.9,3312.2,0.55]
[1736502124332,5.37,3312.9,3312.4,3.01894]
[1736502124626,5.37,3312.9,3312.5,0.40993402]
[1736502126430,5.37,3312.9,3312.5,0.10804002]
[1736502126904,5.37,3312.9,3312.3,0.55]
[1736502127493,5.37,3312.9,3312.4,0.10806393]
[1736502127892,5.24320458,3313.3,3312.4,0.10806393]
[1736502127893,3.0,3313.2,3312.4,0.10806393]
[1736502129844,3.0,3313.2,3312.4,0.65806393]
[1736502130044,3.0,3313.2,3312.5,0.37072905]
[1736502130394,3.0,3313.2,3312.6,0.10801611]
[1736502132912,3.01824,3313.2,3312.6,0.10801611]
[1736502133539,3.01824,3313.2,3312.4,0.55]
[1736502133720,3.01824,3313.2,3312.7,0.1079922]
[1736502134092,3.01824,3313.2,3312.8,0.10796829]
[1736502134529,3.01824,3313.2,3312.4,0.55]
[1736502134735,3.01824,3313.2,3312.5,0.10804002]
[1736502135457,2.22505458,3313.3,3312.5,0.10804002]
[1736502135936,8.38791,3313.6,3312.6,0.55]
[1736502136133,3.01771,3313.8,3312.8,0.55]
[1736502136317,2.22505458,3313.6,3312.8,0.55]
[1736502136498,3.01796,3313.5,3312.9,0.10739066]
[1736502136700,3.01796,3313.5,3313.0,0.218]
[1736502137143,3.01796,3313.5,3313.1,0.10734285]
[1736502137998,2.22505458,3313.3,3313.1,0.10734285]
[1736502138203,5.24323458,3313.3,3313.0,0.218]
[1736502139914,2.22505458,3313.3,3313.0,0.218]
[1736502140116,2.22505458,3313.3,3313.1,0.10727042]
[1736502140316,2.22505458,3313.3,3313.0,0.218]
[1736502141538,3.01799,3313.5,3313.0,0.218]
[1736502142309,3.01827,3313.2,3312.1,3.01919]
[1736502142506,2.22505458,3313.0,3312.7,0.218]
[1736502142832,5.22505458,3313.0,3312.3,0.218]
[1736502143138,3.01884,3312.6,3311.8,5.03979268]
[1736502143340,3.01884,3312.6,3311.9,0.218]
[1736502143528,3.01884,3312.6,3312.0,0.218]
[1736502143739,3.01884,3312.6,3312.0,0.32196766]
[1736502144248,2.22505458,3312.4,3312.0,0.32196766]
[1736502144422,2.22505458,3312.1,3312.0,0.10396766]
[1736502144614,2.22505458,3312.1,3312.0,0.32196766]
[1736502145423,2.22505458,3312.1,3312.0,0.10396766]
[1736502145953,2.22505458,3312.1,3311.9,0.218]
[1736502146112,1.0,3312.0,3311.9,0.218]
[1736502149353,1.0,3312.0,3311.9,0.768]
[1736502149653,1.0,3312.0,3311.9,0.218]
[1736502149821,1.0,3312.0,3311.9,0.32290241]
[1736502158591,1.0,3312.0,3311.9,3.89231241]
[1736502163616,1.0,3312.0,3311.9,0.65490241]
[1736502164255,1.0,3312.0,3311.9,0.32290241]
[1736502167223,1.0,3312.0,3311.9,0.65714065]
[1736502171641,1.0,3312.0,3311.9,0.32290241]
[1736502174341,1.7769,3312.0,3311.9,0.32290241]
[1736502174708,1.0,3312.0,3311.9,0.32290241]
[1736502178460,1.0,3312.0,3311.9,0.10490241]
[1736502178636,4.02075458,3312.0,3311.9,0.10490241]
[1736502178839,0.7957,3311.9,3311.6,0.218]
[1736502179036,3.81515,3311.9,3310.9,3.02029]
[1736502179252,0.7957,3311.8,3311.1,0.55]
[1736502179454,2.22505458,3311.7,3311.1,0.55]
[1736502179759,2.22505458,3311.7,3311.2,0.10496635]
[1736502180737,0.7722,3311.3,3310.7,5.03979268]
[1736502180939,0.8203,3311.0,3310.1,3.02103]
[1736502181127,0.8203,3311.0,3310.8,0.10506208]
[1736502181333,0.8203,3311.0,3310.6,0.218]
[1736502181757,0.8203,3311.0,3310.7,0.10549507]
[1736502183772,0.7617,3311.3,3310.8,0.55]
[1736502183971,5.37,3311.6,3310.8,0.55]
[1736502183972,6.1317,3311.6,3310.9,0.10624463]
[1736502184133,9.15143,3311.6,3310.9,0.10624463]
[1736502184671,3.78143,3311.6,3311.0,0.10621552]
[1736502184832,3.78167,3311.3,3311.0,0.10621552]
[1736502185039,3.78167,3311.3,3310.6,0.218]
[1736502185230,3.02365458,3311.1,3310.7,0.10624071]
[1736502185434,6.04380458,3311.1,3310.7,0.10624071]
[1736502187055,3.02365458,3311.1,3310.7,0.10624071]
[1736502188704,0.7986,3311.1,3310.7,0.10624071]
[1736502191153,3.81877,3311.1,3310.7,0.10624071]
[1736502191366,3.81877,3311.1,3310.6,0.218]
[1736502195245,3.02365458,3311.1,3309.8,8.06110268]
[1736502195441,2.22505458,3310.8,3309.9,0.32455657]
[1736502195848,0.8235,3310.6,3310.0,0.55]
[1736502196056,0.8235,3310.6,3310.1,0.1065294]
[1736502198364,3.84414,3310.6,3310.1,0.1065294]
[1736502198582,3.02088,3310.3,3310.1,0.218]
[1736502199700,3.78239,3310.1,3309.7,0.218]
[1736502200121,6.78202,3310.5,3309.8,0.10660124]
[1736502200603,0.7613,3310.5,3309.8,0.58021226]
[1736502200985,0.7613,3310.5,3310.0,0.55]
[1736502201379,0.7613,3310.5,3310.1,0.1065294]
[1736502201901,3.7758,3310.8,3310.1,0.1065294]
[1736502202100,3.79594,3311.2,3310.2,3.57092]
[1736502202410,0.7758,3311.2,3310.4,3.57076]
[1736502202898,3.01963,3311.7,3310.6,3.57051]
[1736502203097,3.01969,3311.6,3310.8,0.55]
[1736502203596,3.01969,3311.6,3310.9,0.10633788]
[1736502205356,3.01969,3311.6,3311.0,0.218]
[1736502205561,3.01969,3311.6,3311.1,0.10275059]
[1736502205761,0.7821,3311.5,3311.1,0.10275059]
[1736502205975,0.7821,3311.5,3311.1,0.218]
[1736502206300,0.7821,3311.5,3311.2,0.10272148]
[1736502206799,0.7821,3311.5,3311.1,0.218]
[1736502207004,0.7821,3311.5,3311.2,0.10267486]
[1736502207228,0.7821,3311.5,3311.1,0.218]
[1736502207500,0.7821,3311.5,3311.2,0.10266968]
[1736502207695,0.7993,3311.7,3311.2,0.10266968]
[1736502207999,3.7993,3311.7,3311.1,0.218]
[1736502208200,3.0,3311.7,3311.1,0.218]
[1736502208501,4.41641624,3311.9,3311.2,0.10266968]
[1736502208890,3.0,3311.8,3311.1,0.218]
[1736502209291,3.0,3311.8,3311.2,0.10266968]
[1736502209706,2.22505458,3312.1,3311.1,0.24819962]
[1736502209870,2.22505458,3312.1,3311.2,0.55]
[1736502210071,2.22505458,3312.1,3311.3,0.10259395]
[1736502210495,8.24432458,3312.1,3311.3,0.10259395]
[1736502210970,3.0,3312.1,3311.3,0.10259395]
[1736502211178,3.00065458,3312.2,3311.3,0.13279012]
[1736502211365,3.00065458,3312.2,3311.3,0.10259395]
[1736502211589,3.00065458,3312.2,3311.4,0.3672644]
[1736502211793,3.00065458,3312.2,3311.5,0.10247359]
[1736502212997,6.01982458,3312.2,3311.5,0.10247359]
[1736502213604,5.24422458,3312.2,3311.5,0.10247359]
[1736502215016,5.24422458,3312.2,3311.6,0.10244967]
[1736502215221,5.24422458,3312.2,3311.2,3.57005]
[1736502215386,5.24422458,3312.2,3311.3,0.48132644]
[1736502215896,5.24422458,3312.2,3311.3,0.51152262]
[1736502216085,5.24422458,3312.2,3311.3,0.48132644]
[1736502216286,3.01925,3312.1,3311.3,0.48132644]
[1736502216493,3.01925,3312.1,3311.3,0.10252144]
[1736502216701,3.0,3312.3,3311.3,0.10252144]
[1736502216702,2.22505458,3311.9,3311.3,0.10252144]
[1736502216931,3.01951,3311.8,3311.3,0.10252144]
[1736502217106,3.01951,3311.8,3311.1,0.218]
[1736502217417,2.22505458,3311.9,3311.1,0.218]
[1736502217717,2.22505458,3311.9,3311.2,0.10199121]
[1736502218422,0.8307,3312.2,3311.2,0.98601133]
[1736502218599,3.01908,3312.3,3311.3,3.01995]
[1736502218798,3.01908,3312.3,3311.4,0.10194336]
[1736502218799,3.0,3312.2,3311.4,0.10194336]
[1736502218994,3.01908,3312.3,3311.4,0.10194336]
[1736502219195,12.03057697,3312.4,3311.4,3.12179336]
[1736502219403,3.0,3312.3,3311.4,3.12179336]
[1736502219787,6.01905,3312.3,3311.4,0.10194336]
[1736502219982,6.01905,3312.3,3311.2,3.60023618]
[1736502220207,6.01905,3312.3,3311.3,3.5037309]
[1736502220788,9.80552239,3312.4,3311.5,3.01973]
[1736502220987,9.80552239,3312.4,3311.6,0.10191622]
[1736502223826,9.80552239,3312.4,3311.6,3.12159622]
[1736502224228,3.0,3312.4,3311.7,0.03019417]
[1736502224435,3.0,3312.4,3311.8,0.10185802]
[1736502224998,8.24400458,3312.4,3311.5,0.5575]
[1736502225328,0.82,3312.3,3311.6,0.10190586]
[1736502226732,2.22505458,3312.4,3311.6,0.10190586]
[1736502226893,2.22505458,3312.4,3311.6,0.46981645]
[1736502227395,3.8062,3312.6,3311.7,3.0497529]
[1736502227613,3.0,3312.6,3311.8,0.10185802]
[1736502227808,3.01888,3312.5,3311.8,0.10185802]
[1736502227997,5.24400458,3312.4,3311.5,3.57724]
[1736502228222,5.24400458,3312.4,3311.6,0.10190586]
[1736502228822,0.7608,3312.3,3311.6,0.10190586]
[1736502229037,3.7608,3312.3,3311.6,0.217]
[1736502229211,3.01942,3311.9,3311.7,0.1015454]
[1736502229412,3.01942,3311.9,3311.6,0.217]
[1736502229605,3.01942,3311.9,3311.7,0.1015454]
[1736502229809,5.24455458,3311.8,3310.8,5.03979268]
[1736502230141,5.24455458,3311.8,3310.9,0.31873683]
[1736502230338,0.7608,3311.6,3310.9,0.31873683]
[1736502239049,0.7608,3311.6,3310.9,0.10173683]
[1736502239255,0.7608,3311.6,3311.0,0.217]
[1736502239414,0.7608,3311.6,3311.1,0.10168896]
[1736502240723,5.24486458,3311.5,3311.1,0.10168896]
[1736502241254,0.7924,3311.4,3311.1,0.10168896]
[1736502241776,0.7924,3311.4,3311.0,0.217]
[1736502242071,0.7924,3311.4,3311.1,0.10227409]
[1736502245729,0.8226,3311.8,3311.1,0.10227409]
[1736502248274,3.8421,3311.8,3311.1,0.10227409]
[1736502249495,0.8226,3311.8,3311.1,0.10227409]
[1736502249792,0.7,3311.5,3311.1,0.10227409]
[1736502251596,0.7836,3311.4,3311.1,0.10227409]
[1736502256114,0.7836,3311.4,3310.4,5.03979268]
[1736502256115,0.7836,3311.4,3310.8,0.217]
[1736502256263,6.01997,3311.3,3311.2,0.10229158]
[1736502256475,6.01997,3311.3,3310.8,0.217]
[1736502256676,0.8231,3311.1,3310.9,0.10236338]
[1736502256871,0.8231,3311.1,3309.9,3.02117]
[1736502257182,2.22505458,3310.9,3310.0,3.67303409]
[1736502257383,2.22505458,3310.9,3310.0,3.64282584]
[1736502257789,5.24537458,3310.9,3310.0,3.64282584]
[1736502260606,2.22505458,3310.9,3310.0,3.64282584]
[1736502262509,5.24540458,3310.9,3310.0,0.62169584]
[1736502262672,2.22505458,3310.9,3310.0,0.31957884]
[1736502262875,2.22505458,3310.6,3310.0,0.10257884]
[1736502263078,2.22505458,3310.6,3309.9,0.217]
[1736502263079,0.8018,3310.3,3309.9,0.217]
[1736502263318,3.02685458,3310.3,3310.0,0.10319523]
[1736502264528,0.8018,3310.3,3310.0,0.10319523]
[1736502265857,0.8128,3310.6,3310.0,0.10319523]
[1736502266130,11.39051,3310.7,3310.0,0.10319523]
[1736502266315,8.37,3310.7,3310.0,0.10319523]
[1736502266492,0.7878,3310.4,3310.0,0.10319523]
[1736502266828,3.8086,3310.4,3310.0,0.10319523]
[1736502268092,2.22505458,3310.2,3308.9,5.03979268]
[1736502268315,5.24632458,3309.9,3309.0,0.82543867]
[1736502268507,5.24632458,3309.9,3309.0,0.3207094]
[1736502268704,2.22505458,3309.9,3309.0,3.3427394]
[1736502269407,2.22505458,3309.9,3309.0,0.3207094]
[1736502269647,5.24630458,3309.9,3309.0,0.3207094]
[1736502271700,2.22505458,3309.9,3309.0,0.3207094]
[1736502272037,0.7916,3309.7,3309.0,0.1357094]
[1736502273599,0.7916,3309.7,3309.0,0.1037094]
[1736502273600,5.24658458,3309.6,3309.0,0.1037094]
[1736502273804,5.24658458,3309.6,3308.6,3.02241]
[1736502274118,3.0,3309.5,3308.7,0.87131506]
[1736502274339,5.22505458,3309.6,3308.7,0.32131506]
[1736502274535,2.22505458,3309.3,3308.8,0.217]
[1736502274714,5.24690458,3309.3,3308.8,0.217]
[1736502275069,5.24690458,3309.3,3308.9,0.10426713]
[1736502275209,0.8227,3309.2,3308.9,0.10426713]
[1736502275411,2.22505458,3309.0,3308.3,0.55]
[1736502275732,2.22505458,3309.0,3308.4,0.32138697]
[1736502276631,5.24712458,3309.0,3308.4,0.32138697]
[1736502277837,2.22505458,3308.7,3308.4,0.10438697]
[1736502278017,0.7528,3308.6,3308.3,0.217]
[1736502278411,0.7528,3308.6,3308.4,0.10438697]
[1736502278806,0.7528,3308.6,3308.3,0.217]
[1736502278807,0.7528,3308.6,3307.2,5.03979268]
[1736502279037,2.22505458,3308.4,3307.4,3.02352]
[1736502279231,2.22505458,3308.4,3307.5,0.10460276]
[1736502279431,5.24766458,3308.4,3307.5,0.10460276]
[1736502279834,6.02273,3308.3,3307.6,0.217]
[1736502280036,5.22505458,3308.4,3307.7,0.10455479]
[1736502280232,5.22505458,3308.4,3307.8,0.217]
[1736502280233,8.24765458,3308.4,3307.8,0.217]
[1736502280638,8.24765458,3308.4,3307.9,0.10450684]
[1736502280833,8.24765458,3308.4,3307.8,0.217]
[1736502281132,5.22505458,3308.4,3307.9,0.10450684]
[1736502281344,3.0,3308.4,3307.9,0.10450684]
[1736502282138,3.0,3308.5,3307.9,0.10450684]
[1736502282836,3.0,3308.5,3307.8,0.217]
[1736502283036,3.0,3308.5,3307.9,0.10580344]
[1736502283476,3.0,3308.5,3307.8,0.217]
[1736502283649,3.0,3308.5,3307.9,0.217]
[1736502283849,4.36744043,3308.6,3308.0,0.55]
[1736502283850,3.7528,3308.6,3308.0,0.55]
[1736502284066,3.7528,3308.6,3308.1,0.10673583]
[1736502284954,3.7528,3308.6,3308.0,0.55]
[1736502285196,6.77527,3308.6,3307.9,0.217]
[1736502285861,3.7528,3308.6,3307.9,0.217]
[1736502286067,3.02255,3308.5,3308.0,0.10672867]
[1736502286261,2.22505458,3308.4,3307.9,0.217]
[1736502287170,5.24766458,3308.4,3307.9,0.217]
[1736502288106,6.77524,3308.6,3307.9,0.217]
[1736502288311,3.0,3308.5,3307.9,0.217]
[1736502290988,6.77524,3308.6,3307.9,0.217]
[1736502291193,3.0,3308.5,3307.9,0.217]
[1736502292414,3.02271,3308.3,3307.2,8.06345268]
[1736502292578,6.03083458,3308.1,3307.3,0.217]
[1736502293093,6.03083458,3308.1,3307.4,0.10314099]
[1736502294121,6.03083458,3308.1,3307.5,0.217]
[1736502294425,6.03083458,3308.1,3307.6,0.10315518]
[1736502295339,3.02298,3308.0,3307.6,0.10315518]
[1736502295712,3.02298,3308.0,3307.5,0.217]
[1736502296049,3.02298,3308.0,3307.6,0.32032046]
[1736502296549,3.02307,3307.9,3307.6,0.32032046]
[1736502298749,2.22505458,3307.8,3307.6,0.10332046]
[1736502298961,5.24823458,3307.8,3307.6,0.10332046]
[1736502299120,3.7904,3307.7,3307.5,0.217]
[1736502299318,3.7904,3307.7,3307.6,0.10335154]
[1736502299519,3.7904,3307.7,3307.5,0.217]
[1736502299772,6.81364,3307.7,3307.6,0.10335154]
[1736502300258,3.02339,3307.6,3307.1,0.217]
[1736502300475,2.22505458,3307.4,3307.1,0.217]
[1736502300618,2.22505458,3307.4,3307.2,0.10268881]
[1736502301471,3.02346,3307.5,3307.2,0.10268881]
[1736502301691,2.99575458,3307.4,3307.2,0.10268881]
[1736502301900,6.79431,3307.3,3306.6,1.25]
[1736502302204,2.22505458,3306.7,3306.6,1.25]
[1736502302753,5.22505458,3307.0,3306.6,1.25]
[1736502303107,6.01937458,3307.3,3306.6,1.25]
[1736502303272,3.63730247,3307.6,3306.7,0.55]
[1736502303477,3.63730247,3307.6,3306.7,0.75472432]
[1736502303658,3.63730247,3307.6,3306.9,0.55]
[1736502303854,3.0,3307.5,3306.9,0.55]
[1736502304055,2.22505458,3307.3,3306.9,0.55]
[1736502304375,5.24894458,3307.0,3306.8,0.217]
[1736502304764,2.22505458,3307.0,3306.7,0.55]
[1736502305404,2.22505458,3307.0,3306.6,1.467]
[1736502306211,2.22505458,3307.0,3306.7,0.55]
[1736502306411,3.7933,3307.2,3306.7,0.55]
[1736502308060,3.80556,3307.5,3306.7,0.55]
[1736502308701,3.0,3307.4,3306.7,0.55]
[1736502308862,3.02356,3307.4,3306.7,0.55]
[1736502309501,0.7821,3307.5,3306.7,0.55]
[1736502309791,3.0,3307.2,3306.7,0.55]
[1736502310231,3.0,3307.2,3306.9,0.55]
[1736502310432,3.0,3307.2,3306.8,0.09446701]
[1736502310433,6.02398,3306.9,3306.8,0.09446701]
[1736502310605,3.02398,3306.9,3306.6,1.25]
[1736502310927,3.0,3306.8,3306.6,1.25]
[1736502311136,3.0,3306.8,3306.7,0.09129921]
[1736502311332,3.0,3306.8,3306.6,1.25]
[1736502311504,3.0,3306.8,3306.7,0.09129921]
[1736502311710,3.0,3306.8,3306.6,1.25]
[1736502311912,3.0,3306.8,3306.7,0.09129921]
[1736502312210,3.02407,3306.8,3306.6,1.25]
[1736502312416,3.0,3306.8,3306.6,1.25]
[1736502312723,3.0,3306.8,3306.7,0.09129921]
[1736502312934,3.0,3306.8,3306.6,1.25]
[1736502313152,3.02411,3306.8,3306.6,1.25]
[1736502315307,2.22505458,3307.0,3306.6,1.25]
[1736502315503,6.82446,3306.7,3306.6,1.25]
[1736502315812,9.04951458,3306.7,3306.6,1.25]
[1736502319009,9.64724052,3306.7,3306.6,1.25]
[1736502319265,9.65474052,3306.7,3306.6,1.25]
[1736502319465,15.02474052,3306.7,3306.6,1.25]
[1736502320624,3.0,3306.6,3305.4,0.0483036]
[1736502320824,3.02985458,3305.8,3305.5,0.55]
[1736502321310,3.02985458,3305.8,3305.7,0.55]
[1736502321534,3.02985458,3305.8,3305.5,0.55]
[1736502322014,3.02985458,3305.8,3305.7,0.55]
[1736502322546,3.02985458,3305.8,3305.7,0.63576192]
[1736502323358,9.05483458,3305.8,3305.7,0.08576192]
[1736502323565,13.62003458,3305.8,3305.4,0.0483036]
[1736502323861,8.25031458,3305.5,3305.4,0.0483036]
[1736502324030,9.07671458,3305.5,3305.4,0.0483036]
[1736502325129,9.08421458,3305.5,3305.4,0.0483036]
[1736502325621,9.48310627,3305.5,3305.4,0.0483036]
[1736502326216,14.85310627,3305.5,3305.4,0.0483036]
[1736502326422,14.44671458,3305.5,3305.4,0.0483036]
[1736502327714,2.22505458,3305.5,3305.4,0.0483036]
[1736502327934,2.22505458,3305.5,3305.4,0.5983036]
[1736502328383,2.22505458,3305.5,3305.4,0.68480299]
[1736502328788,5.22505458,3305.8,3305.5,0.55]
[1736502329118,5.22505458,3305.8,3305.4,0.13480299]
[1736502329276,5.22505458,3305.8,3305.7,0.55]
[1736502329664,5.22505458,3305.8,3305.7,0.63642736]
[1736502329875,2.22505458,3306.1,3305.7,0.63642736]
[1736502330493,2.22505458,3306.4,3305.7,0.63642736]
[1736502330639,5.37,3306.5,3305.7,3.66141736]
[1736502330836,2.22505458,3306.7,3305.9,3.57487]
[1736502331039,2.22505458,3306.7,3306.1,0.55]
[1736502331497,2.22505458,3306.7,3306.3,0.55]
[1736502331849,3.0,3306.9,3306.5,0.55]
[1736502332050,0.7,3307.0,3306.5,0.55]
[1736502332258,0.7,3307.0,3306.7,0.55]
[1736502332752,0.7,3307.0,3306.9,0.55]
[1736502333059,0.7,3307.0,3306.9,0.66207534]
[1736502334075,0.7,3307.0,3306.3,0.55]
[1736502334076,2.92505458,3307.0,3306.3,0.55]
[1736502334267,2.92505458,3307.0,3306.9,0.11207534]
[1736502334451,2.92505458,3307.0,3306.4,0.55]
[1736502334653,2.92505458,3307.0,3306.9,0.66207534]
[1736502335552,6.69135458,3307.0,3305.8,3.39111174]
[1736502335790,5.24932458,3306.6,3305.9,0.218]
[1736502336157,5.24932458,3306.6,3306.0,0.55]
[1736502336350,2.22505458,3306.6,3306.0,0.55]